bitfinex-derivatives/quotes_BTCF0:USTF0_20210108
["timestamp","ask_amount","ask_price","bid_price","bid_amount"]
[1610149151940,0.23817959,40810.0,40797.0,0.00024223]
[1610149152142,0.23817959,40810.0,40796.0,0.00024223]
[1610149152542,0.23817959,40810.0,40809.0,3.1453]
[1610149153042,0.23817959,40810.0,40809.0,3.28186823]
[1610149153240,0.23817959,40810.0,40809.0,4.78186823]
[1610149153640,0.23817959,40810.0,40809.0,0.13656823]
[1610149153842,0.23817959,40810.0,40809.0,0.00024215]
[1610149154243,0.23817959,40810.0,40797.0,0.00024211]
[1610149154440,0.23817959,40810.0,40809.0,0.00024213]
[1610149154842,0.23817959,40810.0,40798.0,0.00024216]
[1610149155144,0.23817959,40810.0,40809.0,0.13656824]
[1610149155344,0.23817959,40810.0,40809.0,0.13632608]
[1610149155542,0.23817959,40810.0,40809.0,0.13656822]
[1610149156145,0.23817959,40810.0,40809.0,0.13656821]
[1610149160344,0.23817959,40810.0,40809.0,0.00024213]
[1610149160946,0.23817959,40810.0,40803.0,0.09713]
[1610149160947,0.23817959,40810.0,40806.0,3.1345]
[1610149161145,0.23817959,40810.0,40809.0,0.13656818]
[1610149161346,0.23817959,40810.0,40809.0,0.13632608]
[1610149161846,0.23817959,40810.0,40809.0,0.13656816]
[1610149166351,0.23817959,40810.0,40809.0,0.13632608]
[1610149167355,0.23817959,40810.0,40809.0,0.13656815]
[1610149170157,0.23817959,40810.0,40789.0,3.8372]
[1610149170657,0.23817959,40810.0,40790.0,0.00024212]
[1610149171156,0.23817959,40810.0,40809.0,0.13632608]
[1610149171558,0.23817959,40810.0,40809.0,0.13656817]
[1610149177366,0.23817959,40810.0,40809.0,0.15531528]
[1610149186277,0.09632608,40838.0,40809.0,0.15531528]
[1610149186876,0.09632608,40838.0,40810.0,0.0189835]
[1610149187076,0.02858171,40841.0,40810.0,1.5189835]
[1610149187276,0.02858171,40841.0,40837.0,0.13632608]
[1610149187779,0.02858171,40841.0,40838.0,0.01897936]
[1610149188679,0.02858171,40841.0,40833.0,0.01897476]
[1610149188877,0.02858171,40841.0,40839.0,0.01897416]
[1610149189177,0.02858171,40841.0,40840.0,0.13632608]
[1610149189377,0.02858171,40841.0,40840.0,0.15530054]
[1610149193981,0.02858171,40841.0,40840.0,0.13656802]
[1610149195384,0.16490779,40841.0,40840.0,0.13656802]
[1610149195883,0.02858171,40841.0,40840.0,0.15545453]
[1610149198384,0.02858171,40841.0,40840.0,0.01912845]
[1610149198885,0.02858171,40841.0,40840.0,0.00024194]
[1610149199284,0.02858171,40841.0,40836.0,0.13632608]
[1610149199485,0.02858171,40841.0,40840.0,0.00024234]
[1610149199886,0.02858171,40841.0,40837.0,0.01913439]
[1610149200089,0.02858171,40841.0,40840.0,0.00024234]
[1610149200287,0.02858171,40841.0,40838.0,0.00024236]
[1610149200488,0.02858171,40841.0,40840.0,0.00024236]
[1610149200888,0.02858171,40841.0,40839.0,0.00024238]
[1610149201088,0.02858171,40841.0,40840.0,0.00024238]
[1610149201591,0.02858171,40841.0,40808.0,0.01914649]
[1610149201888,0.02858171,40841.0,40807.0,0.13632608]
[1610149201889,0.02858171,40841.0,40840.0,0.00024244]
[1610149202088,0.02858171,40841.0,40809.0,0.01914613]
[1610149202488,0.02858171,40841.0,40840.0,0.00024244]
[1610149202688,0.02858171,40841.0,40810.0,0.01914745]
[1610149202888,0.02858171,40841.0,40840.0,0.00024244]
[1610149203288,0.02858171,40841.0,40814.0,0.13632608]
[1610149203489,0.02858171,40841.0,40840.0,0.00024244]
[1610149203688,0.02858171,40841.0,40795.0,0.10951]
[1610149203689,0.02858171,40841.0,40815.0,0.01914642]
[1610149203893,0.11658171,40841.0,40815.0,0.01914642]
[1610149204090,0.11658171,40841.0,40840.0,0.00024246]
[1610149204289,0.11658171,40841.0,40816.0,0.00024249]
[1610149204590,0.11658171,40841.0,40791.0,0.01891269]
[1610149204591,3.3738,40814.0,40791.0,0.01891269]
[1610149204789,0.11658171,40841.0,40792.0,0.01891489]
[1610149205090,0.11613,40832.0,40792.0,0.01915745]
[1610149205292,0.11613,40832.0,40791.0,0.13632608]
[1610149205492,0.11613,40832.0,40793.0,0.01892432]
[1610149205695,0.11613,40832.0,40793.0,0.0191669]
[1610149205893,0.11613,40832.0,40791.0,0.13632608]
[1610149205894,0.11613,40832.0,40792.0,0.01916609]
[1610149206095,0.11613,40832.0,40794.0,0.01916625]
[1610149206296,0.11613,40832.0,40793.0,0.01916482]
[1610149206696,0.11613,40832.0,40795.0,0.01916431]
[1610149206898,0.11613,40832.0,40794.0,0.01916474]
[1610149207096,0.11613,40832.0,40796.0,0.01916508]
[1610149207506,0.11613,40832.0,40795.0,0.01916623]
[1610149207708,0.08613,40832.0,40797.0,0.01916632]
[1610149207998,0.08613,40832.0,40796.0,0.01916609]
[1610149208199,0.08613,40832.0,40798.0,0.01916509]
[1610149208498,0.08613,40832.0,40797.0,0.01916553]
[1610149208808,0.08613,40832.0,40799.0,0.01916276]
[1610149209000,0.08613,40832.0,40798.0,0.01916284]
[1610149209200,0.08613,40832.0,40800.0,0.00024256]
[1610149209600,0.08613,40832.0,40799.0,0.13656864]
[1610149209802,0.08613,40832.0,40800.0,0.00024254]
[1610149210202,3.5101,40834.0,40800.0,0.00024254]
[1610149210400,3.5101,40834.0,40782.0,0.01916214]
[1610149210701,3.5101,40834.0,40779.0,0.01916255]
[1610149210899,3.5101,40834.0,40783.0,0.01916464]
[1610149211100,3.5101,40834.0,40780.0,0.0191633]
[1610149211299,3.5101,40834.0,40784.0,0.13632608]
[1610149211503,3.5101,40834.0,40784.0,0.13656864]
[1610149211700,3.5101,40834.0,40785.0,0.00024258]
[1610149211901,0.2853,40839.0,40785.0,0.00024258]
[1610149212102,2.8641,40817.0,40785.0,0.00024258]
[1610149213003,2.8641,40817.0,40779.0,0.0191659]
[1610149213203,2.8641,40817.0,40786.0,0.00024258]
[1610149213502,2.8641,40817.0,40782.0,0.13632608]
[1610149213703,2.8641,40817.0,40787.0,0.00024258]
[1610149214106,2.8641,40817.0,40783.0,0.00024258]
[1610149214306,2.8641,40817.0,40779.0,0.01916646]
[1610149214506,2.8641,40817.0,40784.0,0.0002426]
[1610149214808,2.8641,40817.0,40765.0,2.73077993]
[1610149214809,2.8641,40817.0,40780.0,0.00024263]
[1610149215208,0.13632608,40781.0,40777.0,0.13632608]
[1610149215711,0.13632608,40781.0,40769.0,0.00024261]
[1610149215909,0.13632608,40781.0,40778.0,0.00024261]
[1610149216108,0.2887,40816.0,40770.0,0.00024261]
[1610149216508,0.2887,40816.0,40779.0,0.00024261]
[1610149216714,0.2887,40816.0,40771.0,0.00024261]
[1610149217009,0.2887,40816.0,40780.0,0.00024261]
[1610149217211,0.13632608,40781.0,40776.0,0.13632608]
[1610149217712,0.13632608,40781.0,40777.0,0.00024259]
[1610149218611,0.13632608,40781.0,40770.0,0.00024259]
[1610149218812,0.13632608,40781.0,40778.0,0.00024259]
[1610149219011,0.13632608,40781.0,40771.0,0.00024259]
[1610149219215,3.5396,40794.0,40776.0,0.13632608]
[1610149219620,0.2887,40816.0,40776.0,0.13632608]
[1610149219819,2.8312,40815.0,40777.0,0.00024259]
[1610149220417,2.8312,40815.0,40776.0,0.13632608]
[1610149221317,0.13632608,40777.0,40776.0,0.13632608]
[1610149222119,2.8312,40815.0,40776.0,0.13656867]
[1610149222319,0.2887,40816.0,40776.0,0.13656867]
[1610149222520,0.2887,40816.0,40782.0,3.0881]
[1610149222920,0.1569,40845.0,40782.0,3.0881]
[1610149223122,0.1569,40845.0,40783.0,0.01916677]
[1610149223419,0.13632608,40810.0,40806.0,0.13632608]
[1610149223820,0.48860138,40817.0,40807.0,0.00024254]
[1610149224521,0.48860138,40817.0,40800.0,0.1106]
[1610149224522,0.48860138,40817.0,40811.0,2.9331]
[1610149224921,0.48860138,40817.0,40812.0,0.0002425]
[1610149225320,0.48860138,40817.0,40816.0,0.13632608]
[1610149225822,0.48860138,40817.0,40816.0,0.13656853]
[1610149227522,0.48860138,40817.0,40816.0,0.15546647]
[1610149228124,0.48860138,40817.0,40816.0,0.01914039]
[1610149228522,0.48860138,40817.0,40800.0,3.8246]
[1610149228824,0.48860138,40817.0,40816.0,0.00024245]
[1610149229123,0.48860138,40817.0,40801.0,0.06038074]
[1610149229323,0.48860138,40817.0,40816.0,0.00024247]
[1610149229725,0.48860138,40817.0,40809.0,0.01915225]
[1610149229923,0.48860138,40817.0,40816.0,0.00024247]
[1610149230124,0.48860138,40817.0,40810.0,0.01915347]
[1610149230325,0.48860138,40817.0,40810.0,0.00024247]
[1610149230525,0.48860138,40817.0,40809.0,0.0191546]
[1610149230724,0.48860138,40817.0,40811.0,0.01915418]
[1610149231026,0.48860138,40817.0,40810.0,0.01915336]
[1610149231325,0.48860138,40817.0,40808.0,0.13632608]
[1610149231326,0.48860138,40817.0,40809.0,0.01915424]
[1610149231524,0.48860138,40817.0,40811.0,0.01915424]
[1610149231724,0.48860138,40817.0,40808.0,0.13632608]
[1610149231725,0.48860138,40817.0,40810.0,0.01915356]
[1610149232024,0.48860138,40817.0,40812.0,0.01915346]
[1610149232227,0.48860138,40817.0,40811.0,0.01915366]
[1610149232625,0.48860138,40817.0,40808.0,0.13632608]
[1610149232626,0.48860138,40817.0,40813.0,0.0191541]
[1610149232925,0.48860138,40817.0,40812.0,0.01915844]
[1610149233128,0.48860138,40817.0,40814.0,0.01915815]
[1610149233326,0.13632608,40815.0,40813.0,0.01916051]
[1610149233526,0.13632608,40815.0,40800.0,3.8246]
[1610149233928,0.13632608,40815.0,40814.0,0.00024257]
[1610149234228,0.13632608,40815.0,40801.0,0.01916633]
[1610149234430,0.13632608,40815.0,40814.0,0.00024259]
[1610149234630,0.13632608,40815.0,40802.0,0.00024259]
[1610149235029,0.13632608,40815.0,40814.0,0.00024263]
[1610149235229,0.13632608,40815.0,40803.0,0.00024265]
[1610149235429,0.13632608,40815.0,40814.0,0.00024265]
[1610149235630,0.13632608,40815.0,40804.0,0.00024265]
[1610149236031,0.13632608,40815.0,40814.0,0.00024265]
[1610149236335,0.13632608,40815.0,40805.0,0.00024265]
[1610149236531,0.13632608,40815.0,40814.0,0.00024265]
[1610149236731,0.13632608,40815.0,40781.0,0.13632608]
[1610149236732,0.13632608,40815.0,40806.0,0.00024263]
[1610149237134,0.13632608,40815.0,40798.0,2.7529]
[1610149237336,0.13632608,40809.0,40807.0,0.00024263]
[1610149237533,0.13632608,40809.0,40799.0,0.01917]
[1610149238133,0.13632608,40809.0,40799.0,0.06042128]
[1610149238335,0.13632608,40809.0,40800.0,3.6722]
[1610149238534,0.13632608,40809.0,40800.0,3.67244252]
[1610149239034,0.13632608,40809.0,40801.0,0.06040109]
[1610149239336,0.13632608,40809.0,40804.0,0.13632608]
[1610149239936,0.13632608,40809.0,40805.0,0.01916004]
[1610149240637,0.48860138,40817.0,40805.0,0.01916004]
[1610149241441,0.13632608,40813.0,40805.0,0.01916004]
[1610149242643,0.48860138,40817.0,40805.0,0.01916004]
[1610149246144,0.48860138,40817.0,40801.0,0.06040269]
[1610149246345,0.48860138,40817.0,40806.0,0.01915906]
[1610149246545,0.48860138,40817.0,40802.0,0.01915962]
[1610149246845,0.48860138,40817.0,40801.0,0.04124435]
[1610149246846,0.48860138,40817.0,40807.0,0.01916111]
[1610149247045,0.48860138,40817.0,40803.0,0.01916172]
[1610149247248,0.48860138,40817.0,40808.0,0.01892224]
[1610149247446,0.13632608,40809.0,40808.0,0.01916481]
[1610149247647,0.13632608,40809.0,40804.0,0.01916601]
[1610149247847,0.13632608,40809.0,40808.0,0.00024259]
[1610149248246,0.13632608,40809.0,40805.0,0.01917012]
[1610149248447,0.13632608,40809.0,40808.0,0.00024261]
[1610149248646,0.13632608,40809.0,40791.0,0.06018429]
[1610149248647,0.13632608,40809.0,40806.0,0.01917076]
[1610149248948,0.13632608,40809.0,40808.0,0.00024261]
[1610149249148,0.13632608,40809.0,40807.0,3.8754681]
[1610149249548,0.13632608,40809.0,40808.0,0.01916699]
[1610149250049,0.13632608,40809.0,40793.0,3.9262]
[1610149250349,0.13632608,40809.0,40808.0,0.0191695]
[1610149250550,0.13632608,40809.0,40794.0,0.06043503]
[1610149250849,0.13632608,40809.0,40808.0,0.0191724]
[1610149251049,0.13632608,40809.0,40795.0,0.01917323]
[1610149251251,0.13632608,40809.0,40808.0,0.01917201]
[1610149251450,0.48860138,40817.0,40808.0,0.01917201]
[1610149251650,0.48860138,40817.0,40796.0,0.01916855]
[1610149251851,0.48860138,40817.0,40809.0,0.01916829]
[1610149252051,0.48860138,40817.0,40797.0,0.01916971]
[1610149252454,0.48860138,40817.0,40810.0,0.01916988]
[1610149252652,0.48860138,40817.0,40798.0,0.01916859]
[1610149252854,0.48860138,40817.0,40794.0,0.04126399]
[1610149252855,0.48860138,40817.0,40811.0,0.01916912]
[1610149253153,0.48860138,40817.0,40799.0,0.01916734]
[1610149253353,0.48860138,40817.0,40812.0,0.01916802]
[1610149253755,0.48860138,40817.0,40800.0,0.01916774]
[1610149253953,0.48860138,40817.0,40794.0,0.06043173]
[1610149254154,0.48860138,40817.0,40801.0,0.019167]
[1610149254556,0.48860138,40817.0,40795.0,0.01927392]
[1610149254755,0.48860138,40817.0,40794.0,0.0605393]
[1610149254956,0.48860138,40817.0,40796.0,0.01927483]
[1610149255257,2.7567,40800.0,40795.0,0.0192753]
[1610149255460,0.13632608,40796.0,40795.0,0.01903247]
[1610149255656,0.13632608,40796.0,40779.0,0.06070037]
[1610149255958,0.13632608,40796.0,40795.0,0.01928772]
[1610149256156,0.13632608,40796.0,40780.0,0.01928995]
[1610149256358,0.54222608,40796.0,40795.0,0.00024295]
[1610149256559,0.54222608,40796.0,40781.0,0.01929274]
[1610149256760,0.13632608,40796.0,40781.0,0.01929274]
[1610149256960,0.13632608,40796.0,40795.0,0.00024299]
[1610149257161,0.13632608,40796.0,40782.0,0.01929907]
[1610149257363,0.13632608,40796.0,40795.0,0.00024302]
[1610149257762,0.13632608,40796.0,40783.0,0.01929817]
[1610149257962,0.13632608,40796.0,40769.0,3.6814]
[1610149257963,0.13632608,40796.0,40795.0,0.000243]
[1610149258167,0.13632608,40796.0,40784.0,0.01929611]
[1610149258561,0.13632608,40796.0,40795.0,0.000243]
[1610149258761,4.0516,40793.0,40785.0,0.000243]
[1610149258961,4.0516,40793.0,40772.0,0.01905624]
[1610149259160,4.0516,40793.0,40786.0,0.00024304]
[1610149259562,0.13632608,40787.0,40773.0,0.00024304]
[1610149259761,0.25966608,40787.0,40758.0,0.01905961]
[1610149259961,0.25966608,40787.0,40774.0,0.00024305]
[1610149260361,0.25966608,40787.0,40759.0,0.00024305]
[1610149260563,0.25966608,40787.0,40756.0,3.0536]
[1610149260564,0.25966608,40787.0,40775.0,0.00024305]
[1610149260761,0.25966608,40787.0,40760.0,0.00024303]
[1610149261164,0.25966608,40787.0,40776.0,0.00024303]
[1610149261565,0.13632608,40762.0,40757.0,0.01905863]
[1610149262263,0.13632608,40762.0,40751.0,2.52090134]
[1610149262464,0.13632608,40762.0,40758.0,0.01929922]
[1610149262765,0.13632608,40762.0,40752.0,0.01930062]
[1610149262964,0.13632608,40762.0,40750.0,0.01930041]
[1610149263166,0.13632608,40762.0,40753.0,0.01930216]
[1610149263565,3.3426,40795.0,40754.0,0.13632608]
[1610149263766,3.3426,40795.0,40754.0,0.01930146]
[1610149263965,3.3426,40795.0,40754.0,0.01905842]
[1610149264166,3.3426,40795.0,40752.0,0.01930052]
[1610149264366,3.3426,40795.0,40750.0,2.5197289]
[1610149264367,3.3426,40795.0,40755.0,0.00024303]
[1610149264666,3.3426,40795.0,40746.0,3.22962]
[1610149264667,3.3426,40795.0,40753.0,0.01930062]
[1610149264867,3.3426,40795.0,40756.0,0.00024303]
[1610149265165,3.3426,40795.0,40754.0,0.01930156]
[1610149265368,3.3426,40795.0,40757.0,0.00024303]
[1610149265568,3.3426,40795.0,40755.0,0.15562672]
[1610149265569,0.13632608,40758.0,40755.0,0.15562672]
[1610149265769,0.13632608,40758.0,40755.0,0.01905761]
[1610149265967,0.13632608,40758.0,40750.0,0.01905761]
[1610149266168,0.13632608,40758.0,40756.0,0.01930113]
[1610149266368,0.13632608,40758.0,40751.0,0.0193015]
[1610149266569,0.13632608,40758.0,40757.0,0.01930296]
[1610149266968,0.13632608,40758.0,40752.0,0.01930557]
[1610149267170,0.13632608,40758.0,40757.0,0.00024307]
[1610149267369,0.13632608,40758.0,40753.0,0.01930168]
[1610149267570,0.13632608,40758.0,40757.0,0.13632608]
[1610149267869,0.13632608,40758.0,40754.0,0.00024302]
[1610149268071,0.13632608,40758.0,40754.0,0.01929961]
[1610149268272,0.13632608,40758.0,40757.0,0.00024302]
[1610149268472,0.13632608,40758.0,40755.0,0.01930264]
[1610149268671,0.13632608,40758.0,40755.0,0.00024305]
[1610149268872,0.13632608,40758.0,40748.0,0.01906205]
[1610149268873,0.13632608,40758.0,40748.0,0.0193051]
[1610149269072,0.13632608,40758.0,40756.0,0.00024305]
[1610149269272,0.13632608,40758.0,40749.0,0.01930416]
[1610149269474,0.13632608,40758.0,40748.0,0.0193038]
[1610149269673,0.13632608,40750.0,40748.0,0.15562988]
[1610149269873,0.13632608,40750.0,40748.0,0.13632608]
[1610149270173,0.13632608,40750.0,40749.0,0.01930254]
[1610149270573,0.13632608,40750.0,40741.0,0.06075468]
[1610149270975,0.13632608,40750.0,40749.0,0.00024304]
[1610149271175,0.13632608,40750.0,40742.0,0.00024304]
[1610149271379,0.13632608,40750.0,40749.0,0.00024304]
[1610149271580,0.13632608,40750.0,40743.0,0.13656914]
[1610149271976,0.13632608,40750.0,40749.0,0.00024306]
[1610149272278,0.13632608,40750.0,40744.0,0.01930487]
[1610149272576,0.13632608,40750.0,40749.0,0.00024306]
[1610149272777,0.13632608,40750.0,40745.0,0.00024306]
[1610149272979,0.13632608,40750.0,40749.0,0.00024306]
[1610149273181,0.13632608,40750.0,40745.0,0.01906073]
[1610149273384,0.13632608,40750.0,40739.0,2.57375443]
[1610149273578,0.13632608,40750.0,40749.0,0.13656912]
[1610149273877,0.13632608,40750.0,40749.0,0.13632608]
[1610149274077,0.13632608,40750.0,40749.0,0.15562814]
[1610149274477,0.2714,40777.0,40749.0,0.15562814]
[1610149274880,0.2714,40777.0,40749.0,0.13632608]
[1610149275084,0.2714,40777.0,40750.0,0.01930242]
[1610149275579,0.13632608,40751.0,40750.0,0.01930242]
[1610149278082,0.13632608,40751.0,40742.0,0.13632608]
[1610149278283,0.13632608,40751.0,40743.0,0.01930433]
[1610149279583,0.13632608,40744.0,40743.0,0.01930433]
[1610149280786,0.2714,40777.0,40743.0,0.01930433]
[1610149281385,0.2714,40777.0,40745.0,4.0174]
[1610149281587,0.2714,40777.0,40765.0,0.13632608]
[1610149282189,0.0843,40819.0,40769.0,3.6024]
[1610149282586,0.4432,40800.0,40769.0,3.6024]
[1610149282788,0.4432,40800.0,40770.0,0.01929011]
[1610149283691,0.4432,40800.0,40780.0,0.13632608]
[1610149283889,0.4432,40800.0,40781.0,0.4802]
[1610149284187,0.4432,40800.0,40781.0,0.49948611]
[1610149284487,0.4432,40800.0,40782.0,0.01928679]
[1610149285289,0.4432,40800.0,40782.0,0.0607016]
[1610149285690,0.13632608,40783.0,40782.0,0.01928679]
[1610149285992,0.13632608,40783.0,40781.0,0.60405]
[1610149286188,0.13632608,40783.0,40782.0,0.01928492]
[1610149287689,0.13632608,40783.0,40782.0,0.155611]
[1610149288290,0.13632608,40783.0,40782.0,0.01928492]
[1610149290698,0.13632608,40783.0,40775.0,0.01929334]
[1610149290905,0.13632608,40783.0,40782.0,0.00024299]
[1610149291295,0.13632608,40783.0,40776.0,0.00024303]
[1610149291495,0.13632608,40783.0,40782.0,0.00024303]
[1610149291696,0.13632608,40783.0,40777.0,0.00024303]
[1610149292000,0.10604,40787.0,40753.0,0.01905883]
[1610149292200,3.3228,40779.0,40753.0,0.01905883]
[1610149292397,3.3228,40779.0,40757.0,0.01930486]
[1610149292601,3.3228,40779.0,40754.0,0.01930733]
[1610149292800,3.3228,40779.0,40758.0,0.01930639]
[1610149293199,3.3228,40779.0,40734.0,2.51391377]
[1610149293399,0.1569,40778.0,40759.0,0.01930751]
[1610149293602,0.1569,40778.0,40735.0,0.04145784]
[1610149293603,0.1569,40778.0,40735.0,0.06076647]
[1610149293801,0.1569,40778.0,40743.0,0.13632608]
[1610149294104,0.1569,40778.0,40744.0,0.01931044]
[1610149295703,0.1569,40778.0,40760.0,0.13632608]
[1610149296204,0.1569,40778.0,40761.0,0.01930153]
[1610149297104,0.1569,40778.0,40762.0,0.00024301]
[1610149297303,0.1569,40778.0,40764.0,2.7835]
[1610149297505,0.1569,40778.0,40765.0,0.06072772]
[1610149298005,0.13632608,40776.0,40775.0,0.13632608]
[1610149298709,0.39242013,40783.0,40775.0,0.01929158]
[1610149298909,0.39242013,40783.0,40775.0,0.00024296]
[1610149299208,0.39242013,40783.0,40776.0,0.00024304]
[1610149299707,0.39242013,40783.0,40752.0,0.06075022]
[1610149299910,0.39242013,40783.0,40777.0,0.00024304]
[1610149300307,0.39242013,40783.0,40761.0,0.13632608]
[1610149300509,0.39242013,40783.0,40778.0,0.00024304]
[1610149300809,0.39242013,40783.0,40762.0,0.01930192]
[1610149301008,0.39242013,40783.0,40779.0,0.00024306]
[1610149301210,0.39242013,40783.0,40752.0,0.06075051]
[1610149301609,0.39242013,40783.0,40780.0,0.00024306]
[1610149301908,0.39242013,40783.0,40753.0,0.01930509]
[1610149302115,0.13632608,40754.0,40752.0,0.04144732]
[1610149302315,0.13632608,40754.0,40753.0,0.01930538]
[1610149302513,0.13632608,40754.0,40753.0,0.00024307]
[1610149302712,0.13632608,40754.0,40752.0,0.0607527]
[1610149303013,0.13632608,40754.0,40753.0,0.01930474]
[1610149303613,0.13632608,40754.0,40745.0,0.01930714]
[1610149304012,0.39242013,40783.0,40753.0,0.0193088]
[1610149304213,0.39242013,40783.0,40744.0,0.13632608]
[1610149304214,0.39242013,40783.0,40746.0,0.01930925]
[1610149304415,0.39242013,40783.0,40754.0,0.01930958]
[1610149304814,0.39242013,40783.0,40747.0,0.0193094]
[1610149305014,0.39242013,40783.0,40755.0,0.01930956]
[1610149305218,0.39242013,40783.0,40748.0,0.01931088]
[1610149305416,0.39242013,40783.0,40756.0,0.01906808]
[1610149305620,0.39242013,40783.0,40756.0,0.01931119]
[1610149305915,0.39242013,40783.0,40736.0,0.04146086]
[1610149305916,0.39242013,40783.0,40749.0,0.0193107]
[1610149306216,0.39242013,40783.0,40757.0,0.01906772]
[1610149306418,0.39242013,40783.0,40746.0,0.01931073]
[1610149306716,0.39242013,40783.0,40758.0,0.01906796]
[1610149306918,0.39242013,40783.0,40747.0,0.01931102]
[1610149307119,0.39242013,40783.0,40759.0,0.01931095]
[1610149307320,0.39242013,40783.0,40736.0,0.04146086]
[1610149307321,0.39242013,40783.0,40748.0,0.01931105]
[1610149307619,0.39242013,40783.0,40760.0,0.01930969]
[1610149307822,0.39242013,40783.0,40749.0,0.01930939]
[1610149308019,0.13632608,40761.0,40749.0,0.01930939]
[1610149308220,0.13632608,40761.0,40741.0,0.13632608]
[1610149308521,0.13632608,40761.0,40750.0,0.01931006]
[1610149308820,0.13632608,40761.0,40742.0,0.01930999]
[1610149309022,0.13632608,40761.0,40741.0,0.13632608]
[1610149309023,0.13632608,40761.0,40751.0,0.01930999]
[1610149309221,0.13632608,40761.0,40743.0,0.01930989]
[1610149309423,0.13632608,40761.0,40741.0,0.13632608]
[1610149309424,0.13632608,40761.0,40752.0,0.01931033]
[1610149309723,0.13632608,40761.0,40744.0,0.01930965]
[1610149309924,0.13632608,40761.0,40753.0,0.0193094]
[1610149310124,0.39242013,40783.0,40753.0,0.0193094]
[1610149310324,0.39242013,40783.0,40745.0,0.01930957]
[1610149310527,0.39242013,40783.0,40754.0,0.0002431]
[1610149310726,0.39242013,40783.0,40746.0,0.01930931]
[1610149311128,0.39242013,40783.0,40755.0,0.0002431]
[1610149311328,0.39242013,40783.0,40747.0,0.01930955]
[1610149311529,0.39242013,40783.0,40741.0,0.13632608]
[1610149311530,0.39242013,40783.0,40756.0,0.0002431]
[1610149311829,0.39242013,40783.0,40748.0,0.01931181]
[1610149312027,0.13632608,40749.0,40742.0,0.01931183]
[1610149312429,0.13632608,40749.0,40748.0,0.01931173]
[1610149312629,0.13632608,40749.0,40743.0,0.0193118]
[1610149312929,0.13632608,40749.0,40748.0,0.01931203]
[1610149313129,0.13632608,40749.0,40744.0,0.01931158]
[1610149313329,0.13632608,40749.0,40744.0,0.00024311]
[1610149313529,0.13632608,40749.0,40742.0,0.01906854]
[1610149313530,0.13632608,40749.0,40742.0,0.01931165]
[1610149313729,0.13632608,40749.0,40745.0,0.01931288]
[1610149313930,0.13632608,40749.0,40743.0,0.01931314]
[1610149314131,0.13632608,40744.0,40743.0,0.00024311]
[1610149314329,0.13632608,40744.0,40742.0,0.01931429]
[1610149314531,0.13632608,40744.0,40743.0,0.0193146]
[1610149315029,0.13632608,40744.0,40742.0,0.01927923]
[1610149315229,0.13632608,40744.0,40743.0,0.019279]
[1610149315729,0.13632608,40744.0,40742.0,0.01927884]
[1610149316130,0.13632608,40744.0,40743.0,0.01927912]
[1610149316330,0.1569,40771.0,40743.0,0.46287912]
[1610149316532,0.1569,40771.0,40742.0,0.01927515]
[1610149316734,0.1569,40771.0,40747.0,3.4971]
[1610149317031,0.1569,40771.0,40748.0,0.06068193]
[1610149318033,0.1569,40771.0,40754.0,0.13632608]
[1610149318734,0.1569,40771.0,40755.0,0.01926621]
[1610149319738,0.1569,40771.0,40764.0,3.1408]
[1610149320034,0.1569,40771.0,40770.0,0.13632608]
[1610149320240,0.39242013,40783.0,40770.0,0.13632608]
[1610149320635,0.39242013,40783.0,40771.0,0.01925396]
[1610149321437,0.39242013,40783.0,40745.0,2.8761]
[1610149321438,0.39242013,40783.0,40758.0,0.0606459]
[1610149321636,0.1569,40782.0,40772.0,0.01926278]
[1610149321939,0.39242013,40783.0,40759.0,0.01926585]
[1610149322239,0.13632608,40773.0,40756.0,0.13632608]
[1610149322437,0.13632608,40773.0,40760.0,0.01926572]
[1610149322636,0.13632608,40773.0,40757.0,0.01926329]
[1610149322840,0.13632608,40773.0,40761.0,0.01926235]
[1610149323240,0.13632608,40773.0,40758.0,0.01926455]
[1610149323438,0.13632608,40773.0,40762.0,0.01926616]
[1610149323640,0.13632608,40773.0,40759.0,0.01926612]
[1610149323938,0.13632608,40773.0,40763.0,0.01926678]
[1610149324139,0.1569,40782.0,40763.0,0.01926678]
[1610149324341,0.1569,40782.0,40760.0,0.01926574]
[1610149324640,0.1569,40782.0,40757.0,0.01926683]
[1610149324839,0.1569,40782.0,40761.0,0.01926679]
[1610149325039,0.1569,40782.0,40758.0,0.01926706]
[1610149325238,0.1569,40782.0,40762.0,0.019267]
[1610149325638,0.1569,40782.0,40756.0,0.13632608]
[1610149325639,0.1569,40782.0,40759.0,0.01926623]
[1610149325938,0.1569,40782.0,40763.0,0.01926497]
[1610149326138,0.13632608,40764.0,40763.0,0.13632608]
[1610149326738,0.13632608,40764.0,40763.0,0.01926637]
[1610149327241,0.13632608,40764.0,40746.0,0.06066705]
[1610149327438,0.13632608,40764.0,40763.0,0.01926599]
[1610149327738,0.13632608,40764.0,40747.0,0.01926587]
[1610149327939,0.13632608,40764.0,40763.0,0.01926584]
[1610149328141,0.13632608,40764.0,40756.0,0.13632608]
[1610149328439,0.13632608,40764.0,40763.0,0.01926549]
[1610149328839,0.13632608,40764.0,40757.0,0.01926527]
[1610149329039,0.13632608,40764.0,40763.0,0.01926529]
[1610149329339,0.13632608,40764.0,40758.0,0.01926637]
[1610149329539,0.13632608,40764.0,40763.0,0.01926637]
[1610149329841,0.13632608,40764.0,40759.0,0.0192665]
[1610149330039,0.13632608,40764.0,40763.0,0.01926639]
[1610149330339,0.13632608,40764.0,40760.0,0.01926772]
[1610149330541,0.13632608,40764.0,40763.0,0.01927228]
[1610149330842,0.13632608,40764.0,40761.0,0.01927259]
[1610149331044,0.13632608,40764.0,40763.0,0.01903057]
[1610149331241,0.13632608,40764.0,40763.0,0.01927357]
[1610149331446,0.13632608,40764.0,40762.0,0.01927461]
[1610149331647,0.13632608,40764.0,40763.0,0.01927603]
[1610149331941,0.13632608,40764.0,40738.0,0.12733022]
[1610149332141,0.13632608,40739.0,40738.0,0.17774514]
[1610149332641,0.13632608,40739.0,40738.0,0.17798818]
[1610149332842,0.13632608,40739.0,40738.0,0.06069621]
[1610149333442,0.13632608,40739.0,40734.0,0.06070976]
[1610149333843,0.13632608,40739.0,40738.0,0.01928624]
[1610149334046,0.13632608,40739.0,40735.0,0.01928551]
[1610149334247,0.13632608,40739.0,40738.0,0.01928458]
[1610149334644,0.13632608,40739.0,40736.0,0.0192841]
[1610149334844,0.13632608,40739.0,40738.0,0.01928189]
[1610149335046,0.13632608,40739.0,40737.0,0.01928079]
[1610149335449,0.13632608,40739.0,40738.0,0.01928016]
[1610149335848,0.13632608,40739.0,40733.0,0.01927743]
[1610149336148,0.13632608,40739.0,40738.0,0.15560302]
[1610149336347,0.13632608,40739.0,40738.0,0.13632608]
[1610149336747,0.2912,40762.0,40738.0,0.15560104]
[1610149337147,0.2912,40762.0,40739.0,0.01926736]
[1610149337651,0.2912,40762.0,40739.0,0.01926786]
[1610149338253,0.13632608,40740.0,40739.0,0.01926786]
[1610149340759,0.13632608,40740.0,40737.0,0.01927274]